fUSD/lending_fUSD_20240904
["ID","MTS","AMOUNT","RATE_DAILY","PERIOD"]
[337127994,1725448245829,-500.0,0.00014378,2]
[337127995,1725448245838,-250.67506533,0.00014378,2]
[337127996,1725448245848,-500.0,0.00014378,2]
[337127997,1725448245858,-500.0,0.00014378,2]
[337127998,1725448245868,-500.0,0.00014378,2]
[337127999,1725448245878,-500.0,0.00014378,2]
[337128000,1725448245887,-500.0,0.00014378,2]
[337128001,1725448245896,-163.63197613,0.00014378,2]
[337128002,1725448245907,-500.0,0.00014378,2]
[337128003,1725448245916,-500.0,0.00014378,2]
[337128004,1725448245927,-500.0,0.00014378,2]
[337128005,1725448245937,-500.0,0.00014378,2]
[337128006,1725448245946,-500.0,0.00014378,2]
[337128007,1725448245956,-500.0,0.00014378,2]
[337128008,1725448245966,-330.98596463,0.00014378,2]
[337128009,1725448245978,-547.25431596,0.00014378,2]
[337128010,1725448245988,-500.0,0.00014378,2]
[337128011,1725448245997,-500.0,0.00014378,2]
[337128012,1725448246007,-500.0,0.00014378,2]
[337128013,1725448246017,-262.72228081,0.00014378,2]
[337128014,1725448246027,-500.0,0.00014378,2]
[337128015,1725448246036,-421.92199971,0.00014378,2]
[337128016,1725448246047,-660.36,0.00014378,2]
[337128017,1725448246056,-500.0,0.00014378,2]
[337128018,1725448246065,-500.0,0.00014378,2]
[337128019,1725448246075,-500.0,0.00014378,2]
[337128020,1725448246084,-500.0,0.00014378,2]
[337128021,1725448246093,-505.76363463,0.00014378,2]
[337128022,1725448246103,-500.0,0.00014378,2]
[337128023,1725448246112,-577.79060774,0.00014378,2]
[337128024,1725448246122,-500.0,0.00014378,2]
[337128025,1725448246130,-275.62435472,0.00014378,2]
[337128026,1725448246140,-500.0,0.00014378,2]
[337128027,1725448246150,-500.0,0.00014378,2]
[337128028,1725448246159,-786.19,0.00014378,2]
[337128029,1725448246169,-1202.42,0.00014378,2]
[337128030,1725448246179,-500.0,0.00014378,2]
[337128031,1725448246189,-500.0,0.00014378,2]
[337128032,1725448246198,-500.0,0.00014378,2]
[337128033,1725448246207,-500.0,0.00014378,2]
[337128034,1725448246216,-500.0,0.00014378,2]
[337128035,1725448246225,-517.71118296,0.00014378,2]
[337128036,1725448246235,-659.28,0.00014378,2]
[337128037,1725448246244,-500.0,0.00014378,2]
[337128038,1725448246254,-500.0,0.00014378,2]
[337128039,1725448246263,-650.85,0.00014378,2]
[337128040,1725448246273,-500.0,0.00014378,2]
[337128041,1725448246282,-500.0,0.00014378,2]
[337128042,1725448246291,-862.21,0.00014378,2]
[337128043,1725448246300,-524.35,0.00014378,2]
[337128044,1725448246310,-500.0,0.00014378,2]
[337128045,1725448246319,-540.61,0.00014378,2]
[337128046,1725448246329,-500.0,0.00014378,2]
[337128047,1725448246338,-500.92929974,0.00014378,2]
[337128048,1725448246347,-500.0,0.00014378,2]
[337128049,1725448246356,-1723.04,0.00014378,2]
[337128050,1725448246366,-500.0,0.00014378,2]
[337128051,1725448246375,-500.0,0.00014378,2]
[337128052,1725448246384,-500.0,0.00014378,2]
[337128053,1725448246394,-500.0,0.00014378,2]
[337128054,1725448246403,-500.0,0.00014378,2]
[337128055,1725448246412,-436.81842364,0.00014378,2]
[337128056,1725448246422,-500.0,0.00014378,2]
[337128057,1725448246431,-500.0,0.00014378,2]
[337128058,1725448246441,-1135.56,0.00014378,2]
[337128059,1725448246450,-1532.66,0.00014378,2]
[337128060,1725448246459,-1762.58,0.00014378,2]
[337128061,1725448246469,-500.0,0.00014378,2]
[337128062,1725448246478,-500.0,0.00014378,2]
[337128063,1725448246488,-892.7,0.00014378,2]
[337128064,1725448246497,-500.0,0.00014378,2]
[337128065,1725448246507,-1403.23,0.00014378,2]
[337128066,1725448246516,-1519.56,0.00014378,2]
[337128067,1725448246526,-500.0,0.00014378,2]
[337128068,1725448246536,-606.34,0.00014378,2]
[337128069,1725448246545,-817.36,0.00014378,2]
[337128070,1725448246555,-500.0,0.00014378,2]
[337128071,1725448246565,-500.0,0.00014378,2]
[337128072,1725448246574,-1019.91,0.00014378,2]
[337128073,1725448246583,-500.0,0.00014378,2]
[337128074,1725448246593,-204.38622749,0.00014378,2]
[337128075,1725448246602,-391.39206649,0.00014378,2]
[337128077,1725448246612,-966.96,0.00014378,2]
[337128078,1725448246621,-500.0,0.00014378,2]
[337128079,1725448246631,-1262.13,0.00014378,2]
[337128080,1725448246640,-500.0,0.00014378,2]
[337128081,1725448246650,-1042.67,0.00014378,2]
[337128082,1725448246659,-500.0,0.00014378,2]
[337128083,1725448246669,-500.0,0.00014378,2]
[337128084,1725448246679,-500.0,0.00014378,2]
[337128085,1725448246689,-500.0,0.00014378,2]
[337128086,1725448246698,-449.7,0.00014378,2]
[337128087,1725448246707,-500.0,0.00014378,2]
[337128088,1725448246717,-500.0,0.00014378,2]
[337128089,1725448246726,-500.0,0.00014378,2]
[337128090,1725448246736,-500.0,0.00014378,2]
[337128091,1725448246745,-500.0,0.00014378,2]
[337128092,1725448246755,-500.0,0.00014378,2]
[337128093,1725448246764,-500.0,0.00014378,2]
[337128094,1725448246773,-500.0,0.00014378,2]
[337128095,1725448246783,-500.0,0.00014378,2]
[337128096,1725448246792,-500.0,0.00014378,2]
[337128097,1725448246801,-500.0,0.00014378,2]
[337128098,1725448246811,-500.0,0.00014378,2]
[337128099,1725448246820,-500.0,0.00014378,2]
[337128100,1725448246830,-500.0,0.00014378,2]
[337128101,1725448246840,-500.0,0.00014378,2]
[337128102,1725448246849,-500.0,0.00014378,2]
[337128103,1725448246859,-500.0,0.00014378,2]
[337128104,1725448246868,-500.0,0.00014378,2]
[337128105,1725448246878,-500.0,0.00014378,2]
[337128106,1725448246888,-500.0,0.00014378,2]
[337128107,1725448246897,-500.0,0.00014378,2]
[337128108,1725448246907,-500.0,0.00014378,2]
[337128109,1725448246916,-266.33,0.00014378,2]
[337128110,1725448246927,-266.33,0.00014378,2]
[337128111,1725448246936,-266.33,0.00014378,2]
[337128112,1725448246945,-853.54,0.00014378,2]
[337128113,1725448246955,-853.54,0.00014378,2]
[337128114,1725448246965,-853.54,0.00014378,2]
[337128115,1725448246977,-688.59,0.00014378,2]
[337128116,1725448246987,-688.59,0.00014378,2]
[337128117,1725448246996,-688.59,0.00014378,2]
[337128118,1725448247006,-500.0,0.00014378,2]
[337128119,1725448247018,-500.0,0.00014378,2]
[337128120,1725448247028,-500.0,0.00014378,2]
[337128121,1725448247038,-1074.0,0.00014379,2]
[337128122,1725448247049,-500.0,0.00014379,2]
[337128123,1725448247061,-500.0,0.00014379,2]
[337128124,1725448247071,-500.0,0.00014379,2]
[337128125,1725448247081,-500.0,0.00014379,2]
[337128126,1725448247090,-500.0,0.00014379,2]
[337128127,1725448247099,-500.0,0.00014379,2]
[337128128,1725448247108,-500.0,0.00014379,2]
[337128129,1725448247118,-771.47,0.00014379,2]
[337128130,1725448247128,-771.47,0.00014379,2]
[337128131,1725448247137,-1123.87,0.00014379,2]
[337128132,1725448247147,-1123.87,0.00014379,2]
[337128133,1725448247156,-500.0,0.00014379,2]
[337128134,1725448247166,-500.0,0.00014379,2]
[337128135,1725448247177,-1227.15,0.00014379,2]
[337128136,1725448247187,-1227.15,0.00014379,2]
[337128137,1725448247196,-500.0,0.00014379,2]
[337128138,1725448247206,-500.0,0.00014379,2]
[337128139,1725448247216,-572.05,0.00014379,2]
[337128140,1725448247225,-572.05,0.00014379,2]
[337128141,1725448247235,-554.38,0.00014379,2]
[337128142,1725448247245,-554.38,0.00014379,2]
[337128143,1725448247255,-552.45,0.00014379,2]
[337128144,1725448247265,-552.45,0.00014379,2]
[337128145,1725448247274,-500.0,0.00014379,2]
[337128146,1725448247284,-500.0,0.00014379,2]
[337128147,1725448247293,-1529.17,0.00014379,2]
[337128148,1725448247302,-1529.17,0.00014379,2]
[337128149,1725448247312,-1188.55,0.00014379,2]
[337128150,1725448247321,-1188.55,0.00014379,2]
[337128151,1725448247331,-500.0,0.00014379,2]
[337128152,1725448247340,-500.0,0.00014379,2]
[337128153,1725448247349,-500.0,0.00014379,2]
[337128154,1725448247359,-500.0,0.00014379,2]
[337128155,1725448247369,-1471.13,0.00014379,2]
[337128156,1725448247379,-1471.13,0.00014379,2]
[337128157,1725448247390,-1397.49,0.00014379,2]
[337128158,1725448247399,-1397.49,0.00014379,2]
[337128159,1725448247409,-500.0,0.00014379,2]
[337128160,1725448247419,-500.0,0.00014379,2]
[337128161,1725448247429,-911.38,0.00014379,2]
[337128162,1725448247439,-911.38,0.00014379,2]
[337128163,1725448247448,-1901.84,0.00014379,2]
[337128164,1725448247458,-1901.84,0.00014379,2]
[337128165,1725448247471,-500.0,0.00014379,2]
[337128166,1725448247480,-500.0,0.00014379,2]
[337128167,1725448247490,-634.36,0.00014379,2]
[337128168,1725448247499,-634.36,0.00014379,2]
[337128169,1725448247509,-1038.33,0.00014379,2]
[337128170,1725448247519,-1038.33,0.00014379,2]
[337128171,1725448247529,-2122.64,0.00014379,2]
[337128172,1725448247538,-2122.64,0.00014379,2]
[337128173,1725448247548,-1195.18,0.00014379,2]
[337128174,1725448247558,-1195.18,0.00014379,2]
[337128175,1725448247567,-1171.03,0.00014379,2]
[337128176,1725448247577,-1171.03,0.00014379,2]
[337128177,1725448247587,-500.0,0.00014379,2]
[337128178,1725448247596,-500.0,0.00014379,2]
[337128179,1725448247606,-815.19,0.00014379,2]
[337128180,1725448247615,-815.19,0.00014379,2]
[337128181,1725448247625,-500.0,0.00014379,2]
[337128182,1725448247635,-500.0,0.00014379,2]
[337128183,1725448247645,-976.03,0.00014379,2]
[337128184,1725448247655,-976.03,0.00014379,2]
[337128185,1725448247664,-635.55,0.00014379,2]
[337128186,1725448247675,-500.0,0.00014379,2]
[337128187,1725448247684,-500.0,0.00014379,2]
[337128188,1725448247693,-500.0,0.00014379,2]
[337128189,1725448247703,-500.0,0.00014379,2]
[337128190,1725448247712,-1026.29,0.00014379,2]
[337128191,1725448247721,-1026.29,0.00014379,2]
[337128192,1725448247730,-1252.99,0.00014379,2]
[337128193,1725448247740,-1252.99,0.00014379,2]
[337128194,1725448247750,-652.49,0.00014379,2]
[337128195,1725448247759,-652.49,0.00014379,2]
[337128196,1725448247770,-500.0,0.00014379,2]
[337128197,1725448247779,-500.0,0.00014379,2]
[337128198,1725448247789,-500.0,0.00014379,2]
[337128199,1725448247798,-500.0,0.00014379,2]
[337128200,1725448247807,-933.35,0.00014379,2]
[337128201,1725448247817,-933.35,0.00014379,2]
[337128202,1725448247827,-744.49,0.00014379,2]
[337128203,1725448247836,-744.49,0.00014379,2]
[337128204,1725448247845,-500.0,0.00014379,2]
[337128205,1725448247854,-500.0,0.00014379,2]
[337128206,1725448247863,-1916.86,0.00014379,2]
[337128207,1725448247872,-1916.86,0.00014379,2]
[337128208,1725448247881,-500.0,0.00014379,2]
[337128209,1725448247890,-500.0,0.00014379,2]
[337128210,1725448247899,-500.0,0.00014379,2]
[337128211,1725448247909,-500.0,0.00014379,2]
[337128212,1725448247918,-500.0,0.00014379,2]
[337128213,1725448247927,-500.0,0.00014379,2]
[337128214,1725448247936,-500.0,0.00014379,2]
[337128215,1725448247946,-500.0,0.00014379,2]
[337128216,1725448247955,-580.01233851,0.00014379,2]
[337128217,1725448247965,-500.0,0.00014379,2]
[337128218,1725448247978,-500.0,0.00014379,2]
[337128219,1725448247987,-500.0,0.00014379,2]
[337128220,1725448247996,-500.0,0.00014379,2]
[337128221,1725448248006,-500.0,0.00014379,2]
[337128222,1725448248015,-500.0,0.00014379,2]
[337128223,1725448248024,-500.0,0.00014379,2]
[337128224,1725448248034,-500.0,0.00014379,2]
[337128225,1725448248043,-500.0,0.00014379,2]
[337128226,1725448248053,-345.11886911,0.00014379,2]
[337128227,1725448248063,-500.0,0.00014379,2]
[337128228,1725448248073,-1770.21,0.00014379,2]
[337128229,1725448248082,-1770.21,0.00014379,2]
[337128230,1725448248092,-530.03468711,0.00014379,2]
[337128231,1725448248101,-500.0,0.00014379,2]
[337128232,1725448248111,-500.0,0.00014379,2]
[337128233,1725448248120,-500.0,0.00014379,2]
[337128234,1725448248130,-591.1,0.00014379,2]
[337128235,1725448248139,-500.0,0.00014379,2]
[337128236,1725448248149,-591.1,0.00014379,2]
[337128237,1725448248158,-967.58,0.00014379,2]
[337128238,1725448248167,-967.58,0.00014379,2]
[337128239,1725448248176,-500.0,0.00014379,2]
[337128240,1725448248186,-500.0,0.00014379,2]
[337128241,1725448248195,-1435.69,0.00014379,2]
[337128242,1725448248204,-1435.69,0.00014379,2]
[337128243,1725448248214,-684.61,0.00014379,2]
[337128244,1725448248223,-684.61,0.00014379,2]
[337128245,1725448248233,-595.56,0.00014379,2]
[337128246,1725448248243,-595.56,0.00014379,2]
[337128247,1725448248252,-647.61,0.00014379,2]
[337128248,1725448248261,-647.61,0.00014379,2]
[337128249,1725448248271,-500.0,0.00014379,2]
[337128250,1725448248280,-500.0,0.00014379,2]
[337128251,1725448248289,-500.0,0.00014379,2]
[337128252,1725448248298,-500.0,0.00014379,2]
[337128253,1725448248308,-500.0,0.00014379,2]
[337128254,1725448248317,-500.0,0.00014379,2]
[337128255,1725448248327,-500.0,0.00014379,2]
[337128256,1725448248339,-500.0,0.00014379,2]
[337128257,1725448248546,-500.0,0.00014379,2]
[337128258,1725448248557,-838.38,0.00014379,2]
[337128259,1725448248567,-838.38,0.00014379,2]
[337128260,1725448248578,-575.81,0.00014379,2]
[337128261,1725448248587,-575.81,0.00014379,2]
[337128262,1725448248597,-1391.33,0.00014379,2]
[337128263,1725448248607,-1391.33,0.00014379,2]
[337128264,1725448248617,-581.89,0.00014379,2]
[337128265,1725448248627,-686.07,0.00014379,2]
[337128266,1725448248636,-686.07,0.00014379,2]
[337128267,1725448248646,-912.68,0.00014379,2]
[337128268,1725448248656,-912.68,0.00014379,2]
[337128269,1725448248666,-500.0,0.00014379,2]
[337128270,1725448248675,-569.41,0.00014379,2]
[337128271,1725448248697,-569.41,0.00014379,2]
[337128272,1725448248707,-2107.27,0.00014379,2]
[337128273,1725448248717,-2107.27,0.00014379,2]
[337128274,1725448248726,-500.0,0.00014379,2]
[337128275,1725448248736,-1515.5,0.00014379,2]
[337128276,1725448248746,-1515.5,0.00014379,2]
[337128277,1725448248755,-4784.68,0.00014379,2]
[337128278,1725448248765,-2620.23,0.00014379,2]
[337128279,1725448248774,-2620.23,0.00014379,2]
[337128280,1725448248786,-1240.47,0.00014379,2]
[337128281,1725448248796,-1240.47,0.00014379,2]
[337128282,1725448248805,-500.0,0.00014379,2]
[337128283,1725448248815,-500.0,0.00014379,2]
[337128284,1725448248825,-849.25,0.00014379,2]
[337128285,1725448248834,-849.25,0.00014379,2]
[337128286,1725448248844,-573.05,0.00014379,2]
[337128287,1725448248854,-573.05,0.00014379,2]
[337128288,1725448248862,-500.0,0.00014379,2]
[337128289,1725448248872,-1382.52,0.00014379,2]
[337128290,1725448248882,-1382.52,0.00014379,2]
[337128291,1725448248892,-997.23,0.00014379,2]
[337128292,1725448248902,-997.23,0.00014379,2]
[337128293,1725448248911,-500.0,0.00014379,2]
[337128294,1725448248921,-500.0,0.00014379,2]
[337128295,1725448248935,-500.0,0.00014379,2]
[337128296,1725448248944,-861.36,0.00014379,2]
[337128297,1725448248954,-861.36,0.00014379,2]
[337128298,1725448248964,-500.0,0.00014379,2]
[337128299,1725448248978,-500.0,0.00014379,2]
[337128300,1725448248988,-500.0,0.00014379,2]
[337128301,1725448248997,-500.0,0.00014379,2]
[337128302,1725448249007,-871.28,0.00014379,2]
[337128303,1725448249017,-871.28,0.00014379,2]
[337128304,1725448249027,-500.0,0.00014379,2]
[337128305,1725448249037,-810.79,0.00014379,2]
[337128306,1725448249046,-810.79,0.00014379,2]
[337128307,1725448249058,-500.0,0.00014379,2]
[337128308,1725448249068,-500.0,0.00014379,2]
[337128309,1725448249078,-500.0,0.00014379,2]
[337128310,1725448249088,-987.36,0.00014379,2]
[337128311,1725448249098,-987.36,0.00014379,2]
[337128312,1725448249108,-500.0,0.00014379,2]
[337128313,1725448249118,-500.0,0.00014379,2]
[337128314,1725448249128,-500.0,0.00014379,2]
[337128315,1725448249138,-500.0,0.00014379,2]
[337128316,1725448249148,-500.0,0.00014379,2]
[337128317,1725448249157,-500.0,0.00014379,2]
[337128318,1725448249167,-616.9,0.00014379,2]
[337128319,1725448249176,-616.9,0.00014379,2]
[337128320,1725448249186,-500.0,0.00014379,2]
[337128321,1725448249195,-500.0,0.00014379,2]
[337128322,1725448249204,-630.83,0.00014379,2]
[337128323,1725448249214,-630.83,0.00014379,2]
[337128324,1725448249223,-500.0,0.00014379,2]
[337128325,1725448249233,-500.0,0.00014379,2]
[337128326,1725448249243,-500.0,0.00014379,2]
[337128327,1725448249252,-500.0,0.00014379,2]
[337128328,1725448249262,-500.0,0.00014379,2]
[337128329,1725448249272,-899.26,0.00014379,2]
[337128330,1725448249282,-500.0,0.00014379,2]
[337128331,1725448249293,-899.26,0.00014379,2]
[337128332,1725448249303,-500.0,0.00014379,2]
[337128333,1725448249313,-568.02,0.00014379,2]
[337128334,1725448249323,-568.02,0.00014379,2]
[337128335,1725448249333,-500.0,0.00014379,2]
[337128336,1725448249343,-500.0,0.00014379,2]
[337128337,1725448249353,-500.0,0.00014379,2]
[337128338,1725448249364,-500.0,0.00014379,2]
[337128339,1725448249375,-500.0,0.00014379,2]
[337128340,1725448249384,-782.71,0.00014379,2]
[337128341,1725448249394,-782.71,0.00014379,2]
[337128342,1725448249403,-610.91,0.00014379,2]
[337128343,1725448249413,-500.0,0.00014379,2]
[337128344,1725448249422,-500.0,0.00014379,2]
[337128345,1725448249433,-500.0,0.00014379,2]
[337128346,1725448249443,-500.0,0.00014379,2]
[337128347,1725448249453,-500.0,0.00014379,2]
[337128348,1725448249462,-500.0,0.00014379,2]
[337128349,1725448249472,-500.0,0.00014379,2]
[337128350,1725448249482,-565.66,0.00014379,2]
[337128351,1725448249492,-565.66,0.00014379,2]
[337128352,1725448249502,-603.44,0.00014379,2]
[337128353,1725448249512,-712.46,0.00014379,2]
[337128354,1725448249522,-301.4029093,0.00014379,2]
[337128355,1725448249532,-500.0,0.00014379,2]
[337128356,1725448249542,-500.0,0.00014379,2]
[337128357,1725448249552,-1009.68,0.00014379,2]
[337128358,1725448249562,-1063.22,0.00014379,2]
[337128359,1725448249572,-500.0,0.00014379,2]
[337128360,1725448249582,-500.0,0.00014379,2]
[337128361,1725448249592,-1426.19,0.00014379,2]
[337128362,1725448249602,-500.0,0.00014379,2]
[337128363,1725448249612,-500.0,0.00014379,2]
[337128364,1725448249621,-1054.11,0.00014379,2]
[337128365,1725448249631,-918.12,0.00014379,2]
[337128366,1725448249640,-1075.31,0.00014379,2]
[337128367,1725448249649,-734.61,0.00014379,2]
[337128368,1725448249659,-734.61,0.00014379,2]
[337128369,1725448249669,-500.0,0.00014379,2]
[337128370,1725448249679,-500.0,0.00014379,2]
[337128371,1725448249689,-1059.12,0.00014379,2]
[337128372,1725448249699,-1059.12,0.00014379,2]
[337128373,1725448249709,-500.0,0.00014379,2]
[337128374,1725448249718,-500.0,0.00014379,2]
[337128375,1725448249727,-500.0,0.00014379,2]
[337128376,1725448249737,-500.0,0.00014379,2]
[337128377,1725448249747,-885.47,0.00014379,2]
[337128378,1725448249756,-500.0,0.00014379,2]
[337128379,1725448249765,-500.0,0.00014379,2]
[337128380,1725448249775,-500.0,0.00014379,2]
[337128381,1725448249785,-500.0,0.00014379,2]
[337128382,1725448249795,-163.23,0.00014379,2]
[337128383,1725448249804,-500.0,0.00014379,2]
[337128384,1725448249814,-500.0,0.00014379,2]
[337128385,1725448249824,-500.0,0.00014379,2]
[337128386,1725448249834,-341.58232743,0.00014379,2]
[337128387,1725448249843,-539.69,0.00014379,2]
[337128388,1725448249852,-539.69,0.00014379,2]
[337128389,1725448249862,-533.3711677,0.00014379,2]
[337128390,1725448249872,-500.0,0.00014379,2]
[337128391,1725448249881,-503.81,0.00014379,2]
[337128392,1725448249891,-500.0,0.00014379,2]
[337128393,1725448249901,-500.0,0.00014379,2]
[337128394,1725448249911,-516.11,0.00014379,2]
[337128395,1725448249920,-1240.53,0.00014379,2]
[337128396,1725448249930,-1240.53,0.00014379,2]
[337128397,1725448249940,-500.0,0.00014379,2]
[337128398,1725448249949,-988.12,0.00014379,2]
[337128399,1725448249958,-500.0,0.00014379,2]
[337128400,1725448249967,-988.12,0.00014379,2]
[337128401,1725448249980,-500.0,0.00014379,2]
[337128402,1725448249989,-542.15016392,0.00014379,2]
[337128403,1725448249999,-500.0,0.00014379,2]
[337128404,1725448250008,-371.52987466,0.00014379,2]
[337128405,1725448250018,-500.0,0.00014379,2]
[337128406,1725448250028,-500.0,0.00014379,2]
[337128407,1725448250037,-500.0,0.00014379,2]
[337128408,1725448250047,-850.78,0.00014379,2]
[337128409,1725448250061,-850.78,0.00014379,2]
[337128410,1725448250070,-850.78,0.00014379,2]
[337128411,1725448250081,-500.0,0.00014379,2]
[337128412,1725448250091,-500.0,0.00014379,2]
[337128413,1725448250101,-500.0,0.00014379,2]
[337128414,1725448250111,-500.0,0.00014379,2]
[337128415,1725448250120,-500.0,0.00014379,2]
[337128416,1725448250130,-500.0,0.00014379,2]
[337128417,1725448250139,-500.0,0.00014379,2]
[337128418,1725448250148,-500.0,0.00014379,2]
[337128419,1725448250158,-500.0,0.00014379,2]
[337128420,1725448250168,-845.51,0.00014379,2]
[337128421,1725448250178,-611.49,0.00014379,2]
[337128422,1725448250188,-611.49,0.00014379,2]
[337128423,1725448250197,-611.49,0.00014379,2]
[337128424,1725448250206,-500.0,0.00014379,2]
[337128425,1725448250216,-500.0,0.00014379,2]
[337128426,1725448250226,-500.0,0.00014379,2]
[337128427,1725448250236,-500.0,0.00014379,2]
[337128428,1725448250246,-500.0,0.00014379,2]
[337128429,1725448250256,-500.0,0.00014379,2]
[337128430,1725448250265,-1357.91,0.00014379,2]
[337128431,1725448250276,-500.0,0.00014379,2]
[337128432,1725448250287,-972.7,0.00014379,2]
[337128433,1725448250297,-500.0,0.00014379,2]
[337128434,1725448250307,-500.0,0.00014379,2]
[337128435,1725448250316,-1163.73,0.00014379,2]
[337128436,1725448250326,-1163.73,0.00014379,2]
[337128437,1725448250336,-1163.73,0.00014379,2]
[337128438,1725448250346,-500.0,0.00014379,2]
[337128439,1725448250355,-500.0,0.00014379,2]
[337128440,1725448250365,-1013.39,0.00014379,2]
[337128441,1725448250375,-959.43138813,0.00014379,2]
[337128442,1725448251148,-53.95861187,0.00014379,2]
[337128443,1725448251157,-330.34297262,0.00014379,2]
[337128444,1725448251168,-441.66001173,0.00014379,2]
[337128445,1725448251179,-116.71701565,0.00014379,2]
[337128446,1725448251189,-500.0,0.00014379,2]
[337128447,1725448251199,-472.33507288,0.00014379,2]
[337128448,1725448251210,-27.66492712,0.00014379,2]
[337128449,1725448251220,-500.0,0.00014379,2]
[337128450,1725448251229,-282.52767309,0.00014379,2]
[337128451,1725448251238,-828.69,0.00014379,2]
[337128452,1725448251248,-648.0,0.00014379,2]
[337128453,1725448251258,-648.0,0.00014379,2]
[337128454,1725448251267,-500.0,0.00014379,2]
[337128455,1725448251276,-503.54423261,0.00014379,2]
[337128456,1725448251285,-500.0,0.00014379,2]
[337128457,1725448251295,-1871.22,0.00014379,2]
[337128458,1725448251306,-1871.22,0.00014379,2]
[337128459,1725448251315,-500.0,0.00014379,2]
[337128460,1725448251324,-500.0,0.00014379,2]
[337128461,1725448251333,-500.0,0.00014379,2]
[337128462,1725448251343,-1101.55,0.00014379,2]
[337128463,1725448251352,-1101.55,0.00014379,2]
[337128464,1725448251361,-1101.55,0.00014379,2]
[337128465,1725448251371,-1389.3,0.00014379,2]
[337128466,1725448251380,-500.0,0.00014379,2]
[337128467,1725448251390,-500.0,0.00014379,2]
[337128468,1725448251399,-1572.14,0.00014379,2]
[337128469,1725448251408,-1572.14,0.00014379,2]
[337128470,1725448251417,-500.0,0.00014379,2]
[337128471,1725448251427,-500.0,0.00014379,2]
[337128472,1725448251437,-500.0,0.00014379,2]
[337128473,1725448251447,-500.0,0.00014379,2]
[337128474,1725448251456,-500.0,0.00014379,2]
[337128475,1725448251466,-500.0,0.00014379,2]
[337128476,1725448251475,-500.0,0.00014379,2]
[337128477,1725448251484,-324.41919555,0.00014379,2]
[337128478,1725448251496,-500.0,0.00014379,2]
[337128479,1725448251505,-2275.34,0.00014379,2]
[337128480,1725448251514,-790.14,0.00014379,2]
[337128481,1725448251524,-2275.34,0.00014379,2]
[337128482,1725448251534,-790.14,0.00014379,2]
[337128483,1725448251546,-957.91,0.00014379,2]
[337128484,1725448251556,-957.91,0.00014379,2]
[337128485,1725448251566,-957.91,0.00014379,2]
[337128486,1725448251576,-777.19,0.00014379,2]
[337128487,1725448251586,-777.19,0.00014379,2]
[337128488,1725448251595,-725.73,0.00014379,2]
[337128489,1725448251605,-725.73,0.00014379,2]
[337128490,1725448251614,-1400.93,0.00014379,2]
[337128491,1725448251623,-1400.93,0.00014379,2]
[337128492,1725448251633,-1400.93,0.00014379,2]
[337128493,1725448251642,-500.0,0.00014379,2]
[337128494,1725448251651,-500.0,0.00014379,2]